[Event "Live Chess"]
[Site "Chess.com"]
[Date "2023.05.20"]
[Round "-"]
[White "McSlash1"]
[Black "chrisbradgate"]
[Result "1-0"]
[WhiteElo "2027"]
[BlackElo "861"]
[TimeControl "300"]
[EndTime "14:55:44 PDT"]
[Termination "McSlash1 won by checkmate"]

1. e4 {[%clk 0:04:59.4]} 1... e5 {[%clk 0:04:58.6]} 2. Nf3 {[%clk 0:04:58.4]}
2... Nc6 {[%clk 0:04:57.2]} 3. Bb5 {[%clk 0:04:57.7]} 3... a6 {[%clk 0:04:55.6]}
4. Ba4 {[%clk 0:04:56.6]} 4... f6 {[%clk 0:04:54.2]} 5. d4 {[%clk 0:04:54.7]}
5... exd4 {[%clk 0:04:53.1]} 6. e5 {[%clk 0:04:51.1]} 6... fxe5 {[%clk
0:04:50.9]} 7. Bg5 {[%clk 0:04:45.7]} 7... Nge7 {[%clk 0:04:47.7]} 8. Nh4 {[%clk
0:04:35.1]} 8... h6 {[%clk 0:04:46.5]} 9. Qh5+ {[%clk 0:04:31.5]} 9... g6 {[%clk
0:04:38.2]} 10. Nxg6 {[%clk 0:04:25.6]} 10... Rh7 {[%clk 0:04:28.7]} 11. Nxe5+
{[%clk 0:04:22.6]} 11... Rf7 {[%clk 0:04:24.1]} 12. Qxf7# {[%clk 0:04:21.8]} 1-0

[Event "Live Chess"]
[Site "Chess.com"]
[Date "2023.05.20"]
[Round "-"]
[White "Cimon"]
[Black "GEMdzq"]
[Result "0-1"]
[WhiteElo "1830"]
[BlackElo "2248"]
[TimeControl "300"]
[EndTime "14:55:45 PDT"]
[Termination "GEMdzq won by resignation"]

1. Nf3 {[%clk 0:04:56.2]} 1... c5 {[%clk 0:04:57.5]} 2. c3 {[%clk 0:04:45]} 2...
Nf6 {[%clk 0:04:54.8]} 3. d4 {[%clk 0:04:43.5]} 3... e6 {[%clk 0:04:53.5]} 4.
Bf4 {[%clk 0:04:40.9]} 4... Qb6 {[%clk 0:04:52.3]} 5. Qc2 {[%clk 0:04:35.5]}
5... Nc6 {[%clk 0:04:49.1]} 6. e3 {[%clk 0:04:34]} 6... Nd5 {[%clk 0:04:47.2]}
7. Bg3 {[%clk 0:04:31.7]} 7... cxd4 {[%clk 0:04:44.9]} 8. exd4 {[%clk
0:04:29.9]} 8... f5 {[%clk 0:04:43.5]} 9. h4 {[%clk 0:03:59.7]} 9... d6 {[%clk
0:04:26.5]} 10. Bd3 {[%clk 0:03:56.5]} 10... Be7 {[%clk 0:04:23]} 11. Nbd2
{[%clk 0:03:47.1]} 11... Bd7 {[%clk 0:04:21]} 12. Nc4 {[%clk 0:03:44.9]} 12...
Qc7 {[%clk 0:04:20]} 13. Ne3 {[%clk 0:03:09.9]} 13... Nf6 {[%clk 0:04:11.1]} 14.
b4 {[%clk 0:02:54.3]} 14... Nh5 {[%clk 0:04:07.7]} 15. Bh2 {[%clk 0:02:48.6]}
15... Rc8 {[%clk 0:04:03.5]} 16. Qd2 {[%clk 0:02:37.6]} 16... f4 {[%clk
0:03:46.7]} 17. Nc2 {[%clk 0:02:31.6]} 17... O-O {[%clk 0:03:42.4]} 18. O-O
{[%clk 0:02:25]} 18... Nd8 {[%clk 0:03:31.4]} 19. c4 {[%clk 0:02:20.2]} 19... e5
{[%clk 0:03:18]} 20. d5 {[%clk 0:02:07.6]} 20... Bg4 {[%clk 0:03:09.6]} 21. Ng5
{[%clk 0:01:38.8]} 21... h6 {[%clk 0:03:01.3]} 22. Ne4 {[%clk 0:01:34.4]} 22...
Bxh4 {[%clk 0:02:55.6]} 23. c5 {[%clk 0:01:32.9]} 23... Nf7 {[%clk 0:02:53.5]}
24. Rac1 {[%clk 0:01:23.1]} 24... Qe7 {[%clk 0:02:38]} 25. Na3 {[%clk
0:01:17.1]} 25... Nf6 {[%clk 0:02:33.3]} 26. c6 {[%clk 0:01:10]} 26... bxc6
{[%clk 0:02:26.7]} 27. dxc6 {[%clk 0:01:08]} 27... d5 {[%clk 0:02:25.8]} 28.
Nxf6+ {[%clk 0:01:03.2]} 28... Bxf6 {[%clk 0:02:25.7]} 29. Bb5 {[%clk
0:00:57.7]} 29... Be6 {[%clk 0:02:21.1]} 30. Ba4 {[%clk 0:00:51.7]} 30... f3
{[%clk 0:02:09.8]} 31. Rfe1 {[%clk 0:00:36.9]} 31... Bg5 {[%clk 0:02:06.4]} 32.
Qd3 {[%clk 0:00:28.9]} 32... Bxc1 {[%clk 0:02:04.5]} 33. Rxc1 {[%clk 0:00:27.3]}
33... Qg5 {[%clk 0:02:03.9]} 0-1

[Event "Live Chess"]
[Site "Chess.com"]
[Date "2023.05.20"]
[Round "-"]
[White "BJAW87"]
[Black "Nazar_777"]
[Result "1-0"]
[WhiteElo "1432"]
[BlackElo "1595"]
[TimeControl "300"]
[EndTime "14:55:45 PDT"]
[Termination "BJAW87 won by checkmate"]

1. e4 {[%clk 0:04:59.4]} 1... e6 {[%clk 0:04:51.3]} 2. d4 {[%clk 0:04:58.4]}
2... a6 {[%clk 0:04:50.7]} 3. Nf3 {[%clk 0:04:55.7]} 3... h5 {[%clk 0:04:50.1]}
4. Bd3 {[%clk 0:04:52.6]} 4... c5 {[%clk 0:04:49.5]} 5. c3 {[%clk 0:04:49.7]}
5... cxd4 {[%clk 0:04:48.6]} 6. cxd4 {[%clk 0:04:48]} 6... Nf6 {[%clk
0:04:44.8]} 7. O-O {[%clk 0:04:46.8]} 7... Be7 {[%clk 0:04:43.6]} 8. Nc3 {[%clk
0:04:43]} 8... Qc7 {[%clk 0:04:43]} 9. e5 {[%clk 0:04:36]} 9... Ng4 {[%clk
0:04:41.5]} 10. h3 {[%clk 0:04:29.2]} 10... Nh6 {[%clk 0:04:38.8]} 11. Ng5
{[%clk 0:04:21.4]} 11... Nc6 {[%clk 0:04:34.8]} 12. Qxh5 {[%clk 0:04:17.5]}
12... b5 {[%clk 0:04:21.3]} 13. Be3 {[%clk 0:03:56.7]} 13... Bb7 {[%clk
0:04:18.8]} 14. f4 {[%clk 0:03:53]} 14... Nb4 {[%clk 0:04:16.7]} 15. Be4 {[%clk
0:03:38.8]} 15... Bxe4 {[%clk 0:04:13.2]} 16. Ngxe4 {[%clk 0:03:38.7]} 16... Nd5
{[%clk 0:04:07.3]} 17. Nxd5 {[%clk 0:03:32]} 17... exd5 {[%clk 0:04:05.8]} 18.
Ng5 {[%clk 0:03:30.6]} 18... Qc2 {[%clk 0:03:36.7]} 19. b3 {[%clk 0:03:20.1]}
19... Qg6 {[%clk 0:03:28.9]} 20. Qxg6 {[%clk 0:03:11.3]} 20... fxg6 {[%clk
0:03:27.1]} 21. Rac1 {[%clk 0:03:07.7]} 21... Nf7 {[%clk 0:03:25.2]} 22. Nxf7
{[%clk 0:02:56.8]} 22... Kxf7 {[%clk 0:03:23.6]} 23. f5 {[%clk 0:02:56.1]} 23...
Rac8 {[%clk 0:03:19.5]} 24. fxg6+ {[%clk 0:02:54.8]} 24... Kxg6 {[%clk
0:03:18.4]} 25. Rf3 {[%clk 0:02:36.7]} 25... Bg5 {[%clk 0:03:12.3]} 26. Bxg5
{[%clk 0:02:30]} 26... Kxg5 {[%clk 0:03:10.9]} 27. Rcf1 {[%clk 0:02:26.6]} 27...
Kg6 {[%clk 0:03:04.6]} 28. Rg3+ {[%clk 0:02:21.9]} 28... Kh7 {[%clk 0:03:02.9]}
29. Rf7 {[%clk 0:02:19.2]} 29... Rhg8 {[%clk 0:03:00.5]} 30. Rxd7 {[%clk
0:02:16.9]} 30... Rc6 {[%clk 0:02:54.9]} 31. Rxd5 {[%clk 0:02:13.6]} 31... Rf8
{[%clk 0:02:47.7]} 32. Rd7 {[%clk 0:02:10.2]} 32... Rg8 {[%clk 0:02:45.2]} 33.
d5 {[%clk 0:02:05.5]} 33... Rg6 {[%clk 0:02:34.6]} 34. Rxg6 {[%clk 0:02:01]}
34... Kxg6 {[%clk 0:02:33]} 35. e6 {[%clk 0:01:59]} 35... Kf6 {[%clk 0:02:31.7]}
36. e7 {[%clk 0:01:51.8]} 36... Re8 {[%clk 0:02:28.4]} 37. d6 {[%clk 0:01:50.4]}
37... Ke6 {[%clk 0:02:25.7]} 38. Rd8 {[%clk 0:01:46.2]} 38... Rxe7 {[%clk
0:02:21.7]} 39. dxe7 {[%clk 0:01:44.7]} 39... Kxe7 {[%clk 0:02:20.3]} 40. Ra8
{[%clk 0:01:42.9]} 40... Kd6 {[%clk 0:02:18]} 41. Rxa6+ {[%clk 0:01:41.8]} 41...
Kc5 {[%clk 0:02:17.4]} 42. Rg6 {[%clk 0:01:41.2]} 42... Kb4 {[%clk 0:02:16.5]}
43. Rxg7 {[%clk 0:01:40.6]} 43... Ka3 {[%clk 0:02:15.8]} 44. Ra7+ {[%clk
0:01:33.7]} 44... Kb2 {[%clk 0:02:14.4]} 45. h4 {[%clk 0:01:31.1]} 45... b4
{[%clk 0:02:13.5]} 46. h5 {[%clk 0:01:29.8]} 46... Kc3 {[%clk 0:02:12.5]} 47. h6
{[%clk 0:01:28.7]} 47... Kb2 {[%clk 0:02:11.7]} 48. h7 {[%clk 0:01:27.6]} 48...
Kc3 {[%clk 0:02:10.4]} 49. h8=Q+ {[%clk 0:01:26.5]} 49... Kc2 {[%clk 0:02:09.7]}
50. Rc7+ {[%clk 0:01:25.1]} 50... Kb1 {[%clk 0:02:08.2]} 51. Qh7+ {[%clk
0:01:22.8]} 51... Kxa2 {[%clk 0:02:06.6]} 52. Qc2+ {[%clk 0:01:19.2]} 52... Ka3
{[%clk 0:02:05.5]} 53. Ra7# {[%clk 0:01:18]} 1-0

[Event "Live Chess"]
[Site "Chess.com"]
[Date "2023.05.20"]
[Round "-"]
[White "siddu198"]
[Black "Salpingidis"]
[Result "0-1"]
[WhiteElo "1630"]
[BlackElo "2243"]
[TimeControl "300"]
[EndTime "14:56:27 PDT"]
[Termination "Salpingidis won by checkmate"]

1. e4 {[%clk 0:04:58.9]} 1... e6 {[%clk 0:04:58.2]} 2. d4 {[%clk 0:04:55.1]}
2... d5 {[%clk 0:04:57.3]} 3. exd5 {[%clk 0:04:53.5]} 3... exd5 {[%clk 0:04:55]}
4. Nf3 {[%clk 0:04:53.1]} 4... Bd6 {[%clk 0:04:53.6]} 5. Bb5+ {[%clk 0:04:52.5]}
5... c6 {[%clk 0:04:51.6]} 6. Bd3 {[%clk 0:04:52]} 6... Ne7 {[%clk 0:04:50.7]}
7. h3 {[%clk 0:04:51.1]} 7... Bf5 {[%clk 0:04:48.3]} 8. Bxf5 {[%clk 0:04:49.5]}
8... Nxf5 {[%clk 0:04:48.2]} 9. O-O {[%clk 0:04:48.7]} 9... O-O {[%clk
0:04:47.2]} 10. Re1 {[%clk 0:04:46.5]} 10... Nd7 {[%clk 0:04:44.7]} 11. b3
{[%clk 0:04:42.8]} 11... Nf6 {[%clk 0:04:43.8]} 12. c4 {[%clk 0:04:42.2]} 12...
Bc7 {[%clk 0:04:36.3]} 13. c5 {[%clk 0:04:39.4]} 13... Qd7 {[%clk 0:04:33]} 14.
Bg5 {[%clk 0:04:37.7]} 14... Ne4 {[%clk 0:04:30.3]} 15. Nbd2 {[%clk 0:04:22.8]}
15... f6 {[%clk 0:04:07.1]} 16. Bh4 {[%clk 0:04:12.7]} 16... g5 {[%clk
0:03:58.3]} 17. Bg3 {[%clk 0:04:11.2]} 17... Nexg3 {[%clk 0:03:50.3]} 18. fxg3
{[%clk 0:04:08.1]} 18... Bxg3 {[%clk 0:03:49.3]} 19. Re2 {[%clk 0:04:04.7]}
19... Rae8 {[%clk 0:03:41.1]} 20. Nf1 {[%clk 0:04:03.5]} 20... Qc7 {[%clk
0:03:30.1]} 21. Nxg3 {[%clk 0:03:57.4]} 21... Qxg3 {[%clk 0:03:30]} 22. Rxe8
{[%clk 0:03:56.3]} 22... Rxe8 {[%clk 0:03:27.4]} 23. Qd2 {[%clk 0:03:43.6]}
23... Re3 {[%clk 0:03:20.1]} 24. Rf1 {[%clk 0:03:38.2]} 24... Re4 {[%clk
0:02:54.6]} 25. a4 {[%clk 0:02:55.9]} 25... h6 {[%clk 0:02:44]} 26. Qb4 {[%clk
0:02:38.2]} 26... Re7 {[%clk 0:02:34.1]} 27. Qd2 {[%clk 0:02:28.9]} 27... Ne3
{[%clk 0:02:30.3]} 28. Re1 {[%clk 0:02:22.4]} 28... Qf4 {[%clk 0:02:21.5]} 29.
Ne5 {[%clk 0:02:03.2]} 29... fxe5 {[%clk 0:02:08.5]} 30. Rxe3 {[%clk 0:02:00.7]}
30... exd4 {[%clk 0:02:03.9]} 31. Re2 {[%clk 0:01:49.6]} 31... Rxe2 {[%clk
0:01:59.6]} 32. Qxe2 {[%clk 0:01:47.1]} 32... Qe3+ {[%clk 0:01:59.1]} 33. Qxe3
{[%clk 0:01:45.5]} 33... dxe3 {[%clk 0:01:59]} 34. Kf1 {[%clk 0:01:42.2]} 34...
d4 {[%clk 0:01:58.3]} 35. Ke2 {[%clk 0:01:41.8]} 35... Kf7 {[%clk 0:01:57.4]}
36. b4 {[%clk 0:01:40.8]} 36... Ke6 {[%clk 0:01:57.3]} 37. b5 {[%clk 0:01:40.3]}
37... Kd5 {[%clk 0:01:56.1]} 38. bxc6 {[%clk 0:01:38]} 38... Kxc6 {[%clk
0:01:56]} 39. g3 {[%clk 0:01:35.7]} 39... Kxc5 {[%clk 0:01:55.4]} 40. h4 {[%clk
0:01:34.9]} 40... Kd5 {[%clk 0:01:54.6]} 41. hxg5 {[%clk 0:01:33.8]} 41... hxg5
{[%clk 0:01:54.3]} 42. g4 {[%clk 0:01:33.1]} 42... Ke4 {[%clk 0:01:53.2]} 43. a5
{[%clk 0:01:31.9]} 43... d3+ {[%clk 0:01:52.6]} 44. Ke1 {[%clk 0:01:30.8]} 44...
d2+ {[%clk 0:01:51.1]} 45. Ke2 {[%clk 0:01:30.3]} 45... Kd4 {[%clk 0:01:50.1]}
46. a6 {[%clk 0:01:29.5]} 46... bxa6 {[%clk 0:01:48.7]} 47. Kd1 {[%clk
0:01:28.7]} 47... a5 {[%clk 0:01:46.3]} 48. Ke2 {[%clk 0:01:27.9]} 48... a4
{[%clk 0:01:45.9]} 49. Kd1 {[%clk 0:01:27.2]} 49... a3 {[%clk 0:01:45.4]} 50.
Ke2 {[%clk 0:01:26.6]} 50... a2 {[%clk 0:01:44.7]} 51. Kd1 {[%clk 0:01:22.3]}
51... a1=Q+ {[%clk 0:01:42.9]} 52. Ke2 {[%clk 0:01:21.2]} 52... d1=Q# {[%clk
0:01:41.7]} 0-1

[Event "Live Chess"]
[Site "Chess.com"]
[Date "2023.05.20"]
[Round "-"]
[White "Conradical12"]
[Black "nigelst"]
[Result "0-1"]
[WhiteElo "1597"]
[BlackElo "1837"]
[TimeControl "300"]
[EndTime "14:56:37 PDT"]
[Termination "nigelst won by checkmate"]

1. e4 {[%clk 0:04:57.8]} 1... c6 {[%clk 0:04:59]} 2. d4 {[%clk 0:04:56.3]} 2...
d5 {[%clk 0:04:57.2]} 3. f3 {[%clk 0:04:55.8]} 3... e6 {[%clk 0:04:54.9]} 4. Nc3
{[%clk 0:04:53.2]} 4... Bb4 {[%clk 0:04:52.4]} 5. Ne2 {[%clk 0:04:52.2]} 5...
dxe4 {[%clk 0:04:46.7]} 6. fxe4 {[%clk 0:04:50.8]} 6... Qh4+ {[%clk 0:04:43.2]}
7. Ng3 {[%clk 0:04:44.6]} 7... Nf6 {[%clk 0:04:36]} 8. Bd3 {[%clk 0:04:39.5]}
8... O-O {[%clk 0:04:32.7]} 9. O-O {[%clk 0:04:38.3]} 9... Ng4 {[%clk
0:04:25.9]} 10. d5 {[%clk 0:04:21.2]} 10... Qxh2# {[%clk 0:04:21.6]} 0-1

[Event "Live Chess"]
[Site "Chess.com"]
[Date "2023.05.20"]
[Round "-"]
[White "JoeyCage"]
[Black "therealab0ne"]
[Result "1-0"]
[WhiteElo "2306"]
[BlackElo "694"]
[TimeControl "300"]
[EndTime "14:56:49 PDT"]
[Termination "JoeyCage won by resignation"]

1. e4 {[%clk 0:04:54.1]} 1... c5 {[%clk 0:04:58.6]} 2. Nf3 {[%clk 0:04:53]} 2...
Nc6 {[%clk 0:04:57.7]} 3. d4 {[%clk 0:04:52.1]} 3... cxd4 {[%clk 0:04:56.9]} 4.
Nxd4 {[%clk 0:04:51.4]} 4... Nf6 {[%clk 0:04:56.7]} 5. Nc3 {[%clk 0:04:50.3]}
5... g6 {[%clk 0:04:52.3]} 6. Be3 {[%clk 0:04:43.5]} 6... Bg7 {[%clk 0:04:51.7]}
7. Bc4 {[%clk 0:04:42.9]} 7... O-O {[%clk 0:04:50]} 8. Bb3 {[%clk 0:04:42.4]}
8... Na5 {[%clk 0:04:40]} 9. e5 {[%clk 0:04:39.3]} 9... Nxb3 {[%clk 0:04:36.6]}
10. axb3 {[%clk 0:04:37.7]} 10... Ne8 {[%clk 0:04:20.7]} 11. f4 {[%clk
0:04:35.3]} 11... d6 {[%clk 0:04:16.1]} 12. Nf3 {[%clk 0:04:27.8]} 12... dxe5
{[%clk 0:04:14.5]} 13. Qxd8 {[%clk 0:04:25.8]} 1-0

[Event "Live Chess"]
[Site "Chess.com"]
[Date "2023.05.20"]
[Round "-"]
[White "ViktorTheCoolBoy"]
[Black "LiamClery2020"]
[Result "1/2-1/2"]
[WhiteElo "2507"]
[BlackElo "2089"]
[TimeControl "300"]
[EndTime "14:56:51 PDT"]
[Termination "Game drawn by agreement"]

1. d4 {[%clk 0:04:58.2]} 1... Nf6 {[%clk 0:04:58.2]} 2. c4 {[%clk 0:04:57.1]}
2... g6 {[%clk 0:04:56.3]} 3. Nc3 {[%clk 0:04:56]} 3... d5 {[%clk 0:04:55.8]} 4.
cxd5 {[%clk 0:04:54.4]} 4... Nxd5 {[%clk 0:04:55.7]} 5. e4 {[%clk 0:04:53.9]}
5... Nxc3 {[%clk 0:04:55.1]} 6. bxc3 {[%clk 0:04:53.7]} 6... Bg7 {[%clk
0:04:55]} 7. Nf3 {[%clk 0:04:52.1]} 7... c5 {[%clk 0:04:54.3]} 8. Bb5+ {[%clk
0:04:51.4]} 8... Bd7 {[%clk 0:04:52.8]} 9. Bxd7+ {[%clk 0:04:49.9]} 9... Qxd7
{[%clk 0:04:51.7]} 10. O-O {[%clk 0:04:49]} 10... cxd4 {[%clk 0:04:50.8]} 11.
cxd4 {[%clk 0:04:47.9]} 11... O-O {[%clk 0:04:50.4]} 12. Be3 {[%clk 0:04:47.2]}
12... Nc6 {[%clk 0:04:49.6]} 13. Rb1 {[%clk 0:04:44.8]} 13... e6 {[%clk
0:04:44.6]} 14. Qa4 {[%clk 0:04:41.3]} 14... Rad8 {[%clk 0:04:41.6]} 15. Rfd1
{[%clk 0:04:39.9]} 15... Ne5 {[%clk 0:04:29.1]} 16. Qxd7 {[%clk 0:04:37]} 16...
Nxf3+ {[%clk 0:04:28]} 17. gxf3 {[%clk 0:04:35.3]} 17... Rxd7 {[%clk 0:04:27.9]}
18. Rb4 {[%clk 0:04:27.2]} 18... Rfd8 {[%clk 0:04:24.5]} 19. e5 {[%clk
0:04:21.7]} 19... Bxe5 {[%clk 0:04:21.1]} 20. Rdb1 {[%clk 0:04:16.2]} 20... Bxd4
{[%clk 0:04:18.2]} 21. Bxd4 {[%clk 0:04:14.6]} 21... Rxd4 {[%clk 0:04:17.5]} 22.
Rxb7 {[%clk 0:04:14.2]} 22... R4d7 {[%clk 0:04:14.1]} 1/2-1/2

[Event "Live Chess"]
[Site "Chess.com"]
[Date "2023.05.20"]
[Round "-"]
[White "JackCheetham1"]
[Black "LL220284LL"]
[Result "0-1"]
[WhiteElo "1695"]
[BlackElo "2388"]
[TimeControl "300"]
[EndTime "14:56:52 PDT"]
[Termination "LL220284LL won by resignation"]

1. e4 {[%clk 0:04:59.5]} 1... d6 {[%clk 0:04:58.2]} 2. d4 {[%clk 0:04:57.4]}
2... Nf6 {[%clk 0:04:57.4]} 3. Nd2 {[%clk 0:04:55.4]} 3... g6 {[%clk 0:04:56.2]}
4. Ngf3 {[%clk 0:04:54.3]} 4... Bg7 {[%clk 0:04:55.7]} 5. c3 {[%clk 0:04:53]}
5... Nbd7 {[%clk 0:04:55]} 6. Bd3 {[%clk 0:04:52.1]} 6... e5 {[%clk 0:04:54.3]}
7. O-O {[%clk 0:04:50.1]} 7... O-O {[%clk 0:04:53.3]} 8. Re1 {[%clk 0:04:48.4]}
8... c6 {[%clk 0:04:52.5]} 9. Nf1 {[%clk 0:04:46.1]} 9... Re8 {[%clk 0:04:51.6]}
10. Ng3 {[%clk 0:04:45.1]} 10... b6 {[%clk 0:04:50.9]} 11. h3 {[%clk 0:04:43.5]}
11... Bb7 {[%clk 0:04:50.4]} 12. Be3 {[%clk 0:04:38.8]} 12... Qc7 {[%clk
0:04:49.7]} 13. Qd2 {[%clk 0:04:35.1]} 13... Rad8 {[%clk 0:04:47.1]} 14. Rac1
{[%clk 0:04:28]} 14... d5 {[%clk 0:04:43.8]} 15. dxe5 {[%clk 0:04:15.3]} 15...
Nxe4 {[%clk 0:04:37.6]} 16. Qc2 {[%clk 0:03:52.8]} 16... Nxg3 {[%clk 0:04:31.8]}
17. fxg3 {[%clk 0:03:51.6]} 17... Nxe5 {[%clk 0:04:30]} 18. Bf4 {[%clk
0:03:43.6]} 18... Nxf3+ {[%clk 0:04:24.8]} 19. gxf3 {[%clk 0:03:42.8]} 19... Be5
{[%clk 0:04:24.5]} 20. Bxe5 {[%clk 0:03:30.6]} 20... Rxe5 {[%clk 0:04:24.4]} 21.
f4 {[%clk 0:03:21.4]} 21... Rxe1+ {[%clk 0:04:20.7]} 22. Rxe1 {[%clk 0:03:18.9]}
22... c5 {[%clk 0:04:19.8]} 23. Qf2 {[%clk 0:03:10.5]} 23... d4 {[%clk
0:04:15.7]} 24. cxd4 {[%clk 0:02:55.1]} 24... Rxd4 {[%clk 0:04:15.6]} 25. Re8+
{[%clk 0:02:43.7]} 25... Kg7 {[%clk 0:04:14.4]} 26. Bc2 {[%clk 0:02:34.2]} 26...
Qc6 {[%clk 0:03:59.9]} 27. Kf1 {[%clk 0:02:11.9]} 27... Qxe8 {[%clk 0:03:55.2]}
28. f5 {[%clk 0:01:53.7]} 28... Qc6 {[%clk 0:03:49.1]} 29. fxg6 {[%clk
0:01:43.3]} 29... Qh1+ {[%clk 0:03:46.3]} 30. Ke2 {[%clk 0:01:42.6]} 30... Ba6+
{[%clk 0:03:41.6]} 31. Ke3 {[%clk 0:01:31.3]} 31... Qc1+ {[%clk 0:03:40.8]} 32.
Kf3 {[%clk 0:01:20.2]} 32... Bb7+ {[%clk 0:03:39.4]} 33. Ke2 {[%clk 0:01:18.3]}
33... Rd2+ {[%clk 0:03:37.7]} 0-1

[Event "Live Chess"]
[Site "Chess.com"]
[Date "2023.05.20"]
[Round "-"]
[White "LodeshChess"]
[Black "Jo1ts"]
[Result "0-1"]
[WhiteElo "1069"]
[BlackElo "765"]
[TimeControl "300"]
[EndTime "14:57:57 PDT"]
[Termination "Jo1ts won by resignation"]

1. e4 {[%clk 0:04:59.4]} 1... d5 {[%clk 0:04:58.5]} 2. exd5 {[%clk 0:04:57.2]}
2... Qxd5 {[%clk 0:04:58.4]} 3. Nc3 {[%clk 0:04:56.4]} 3... Qd8 {[%clk
0:04:57.1]} 4. d4 {[%clk 0:04:54.3]} 4... Nf6 {[%clk 0:04:54.7]} 5. Nf3 {[%clk
0:04:53.7]} 5... Bg4 {[%clk 0:04:51.7]} 6. Be2 {[%clk 0:04:52.4]} 6... g6 {[%clk
0:04:44.4]} 7. Be3 {[%clk 0:04:47.1]} 7... Bg7 {[%clk 0:04:43.2]} 8. Qd2 {[%clk
0:04:44.5]} 8... O-O {[%clk 0:04:38.7]} 9. h3 {[%clk 0:04:37.6]} 9... Bxf3
{[%clk 0:04:30.4]} 10. Bxf3 {[%clk 0:04:35.4]} 10... Nc6 {[%clk 0:04:24.7]} 11.
Bxc6 {[%clk 0:04:31.3]} 11... bxc6 {[%clk 0:04:22.8]} 12. h4 {[%clk 0:04:28.7]}
12... Ng4 {[%clk 0:04:16.8]} 13. Bf4 {[%clk 0:04:18]} 13... Bxd4 {[%clk
0:04:06.9]} 14. O-O-O {[%clk 0:04:12.1]} 14... Nxf2 {[%clk 0:03:51.7]} 15. Qxd4
{[%clk 0:04:09.5]} 15... Qxd4 {[%clk 0:03:46.4]} 16. Rxd4 {[%clk 0:04:07.8]}
16... Nxh1 {[%clk 0:03:43.3]} 17. Bh6 {[%clk 0:03:57.7]} 17... Rfd8 {[%clk
0:03:39.8]} 18. Re4 {[%clk 0:03:47.5]} 18... Nf2 {[%clk 0:03:30.9]} 19. Rxe7
{[%clk 0:03:43.5]} 19... Re8 {[%clk 0:03:27.7]} 20. Rxc7 {[%clk 0:03:30.4]}
20... Rad8 {[%clk 0:03:24.2]} 21. Rxc6 {[%clk 0:03:10.4]} 21... Re1+ {[%clk
0:03:15.3]} 0-1

[Event "Live Chess"]
[Site "Chess.com"]
[Date "2023.05.20"]
[Round "-"]
[White "Asperasummitatem"]
[Black "Stanbad1"]
[Result "0-1"]
[WhiteElo "1282"]
[BlackElo "2392"]
[TimeControl "300"]
[EndTime "14:57:58 PDT"]
[Termination "Stanbad1 won by checkmate"]

1. e4 {[%clk 0:04:58.5]} 1... e6 {[%clk 0:04:58.5]} 2. d4 {[%clk 0:04:57.5]}
2... d5 {[%clk 0:04:57.6]} 3. Nd2 {[%clk 0:04:56.5]} 3... Nf6 {[%clk 0:04:55.6]}
4. e5 {[%clk 0:04:55.1]} 4... Nfd7 {[%clk 0:04:51.7]} 5. Bd3 {[%clk 0:04:53.2]}
5... c5 {[%clk 0:04:49.7]} 6. c3 {[%clk 0:04:51]} 6... Nc6 {[%clk 0:04:49.6]} 7.
Ne2 {[%clk 0:04:43.6]} 7... cxd4 {[%clk 0:04:48.7]} 8. cxd4 {[%clk 0:04:38.1]}
8... f6 {[%clk 0:04:48.6]} 9. exf6 {[%clk 0:04:35.1]} 9... Nxf6 {[%clk
0:04:44.8]} 10. Nf3 {[%clk 0:04:32.3]} 10... Bd6 {[%clk 0:04:33.4]} 11. O-O
{[%clk 0:04:27.5]} 11... O-O {[%clk 0:04:31.7]} 12. Re1 {[%clk 0:04:18.6]} 12...
Bd7 {[%clk 0:04:27.6]} 13. Nf4 {[%clk 0:04:15]} 13... Ng4 {[%clk 0:04:21.5]} 14.
Nxe6 {[%clk 0:03:58.7]} 14... Bxe6 {[%clk 0:04:18.9]} 15. Rxe6 {[%clk
0:03:57.2]} 15... Nf6 {[%clk 0:04:04.9]} 16. Bg5 {[%clk 0:03:21.7]} 16... Qd7
{[%clk 0:03:59.2]} 17. Re2 {[%clk 0:03:02.7]} 17... Qg4 {[%clk 0:03:54.2]} 18.
h3 {[%clk 0:02:33.2]} 18... Qh5 {[%clk 0:03:50.2]} 19. Qc2 {[%clk 0:02:10.6]}
19... Nxd4 {[%clk 0:03:35.4]} 20. Nxd4 {[%clk 0:01:49.4]} 20... Qxg5 {[%clk
0:03:30.5]} 21. Ne6 {[%clk 0:01:44.4]} 21... Qh4 {[%clk 0:03:25.9]} 22. Nxf8
{[%clk 0:01:41.2]} 22... Rxf8 {[%clk 0:03:24.8]} 23. Rae1 {[%clk 0:01:34.9]}
23... Ng4 {[%clk 0:03:21.7]} 24. Qb3 {[%clk 0:01:16.2]} 24... Bh2+ {[%clk
0:03:14.5]} 25. Kf1 {[%clk 0:01:11.4]} 25... Rxf2+ {[%clk 0:03:11.6]} 26. Rxf2
{[%clk 0:01:07.9]} 26... Qxf2# {[%clk 0:03:10]} 0-1